Cogmind - Beta 13 @@@ ROGUE MODE // 2024.04.03 @ 16:40:17 Player: Mantreise Result: Destroyed by 3O-I04(R) with Subdweller Laser Performance ------------- Evolutions (0) 0 Regions Visited (2) 400 Robots Destroyed (11) 55 Value Destroyed (360) 360 Prototype IDs (2) 40 Alien Tech Used (0) 0 Bonus (0) 0 TOTAL SCORE: 855 Bonus ------- None Cogmind --------- Core Integrity 0/250 Matter 45/300 Energy 100/100 System Corruption 0% Temperature Cool (6) Movement Core (50) Location -10/Subcaves Parts ------- > --- POWER (1) -------- (None) > --- PROPULSION (2) --- (None) > --- UTILITY (2) ------ (None) > --- WEAPON (2) ------- (None) > --- INVENTORY (5) ---- Subdweller Optics Makeshift Light Armor Plating Peak State ------------ > --- POWER ------------ Ion Engine > --- PROPULSION ------- Improved Hover Unit Improved Hover Unit > --- UTILITY ---------- Scrap Shield > --- WEAPON ----------- Light Assault Rifle Subdweller Shrapnel Launcher > --- INVENTORY -------- Light Ion Engine Datajack Scrap Shield Fragment [Rating: 12] Favorites ----------- Power Ion Engine Engine Ion Engine Propulsion Improved Hover Unit Treads Light Treads Wheel Wheel Hover Unit Improved Hover Unit Utility Scrap Shield Device ECM Suite Storage Medium Storage Unit Protection Scrap Shield Weapon Subdweller Shrapnel Launcher Energy Gun Medium Laser Ballistic Gun Light Assault Rifle Launcher Subdweller Shrapnel Launcher Special Weapon Mining Laser Special Melee Weapon Datajack Build | -11 -10 -10 ------- Run | Yrd Mat Sub Slots Evolved . | . . . Power . | . . . Propulsion . | . . . Utility . | . . . Weapon . | . . . Parts Attached 21 | 7 6 8 Power 2 | 1 . 1 Engine 2 | 1 . 1 Core . | . . . Reactor . | . . . Propulsion 9 | 4 2 3 Treads 2 | 2 . . Leg . | . . . Wheel 2 | 2 . . Hover 5 | . 2 3 Flight . | . . . Utility 3 | . 2 1 Device 1 | . 1 . Storage 1 | . 1 . Processor . | . . . Hackware . | . . . Protection 1 | . . 1 Artifact . | . . . Weapon 7 | 2 2 3 Energy Gun 2 | 1 . 1 Energy Cannon . | . . . Ballistic Gun 2 | 1 . 1 Ballistic Cannon . | . . . Launcher 1 | . . 1 Special Weapon 1 | . 1 . Impact Weapon . | . . . Slashing Weapon . | . . . Piercing Weapon . | . . . Special Melee Weapon 1 | . 1 . Unidentified Prototypes . | . . . Parts Lost 11 | . . 11 Power 2 | . . 2 Propulsion 5 | . . 5 Utility 1 | . . 1 Weapon 3 | . . 3 Highest Loss Streak 3 | . . 3 To Critical Strikes . | . . . Average Slot Usage (%) 63 | . 76 54 Engine 11 | . 14 10 Wheel 7 | . 18 . Hover 12 | . 9 15 Device 3 | . 5 2 Protection 5 | . . 9 Energy Gun 4 | . 8 . Ballistic Gun 5 | . 10 1 Launcher 7 | . . 11 Special Weapon 2 | . 3 1 Special Melee Weapon 2 | . 5 1 Naked Turns . | . . . Heaviest Build 32 | 8 10 32 Greatest Support 40 | 40 26 14 Greatest Overweight (x) 4 | . . 4 Average Overweight (x) 1 | . . 2 Largest Inventory Capacity 10 | 5 10 5 Average Capacity 5 | 5 5 5 Most Carried 5 | 3 5 5 Average Carried 2 | . 2 2 Final Capacity 5 | 5 5 5 Final Carried 5 | 1 5 2 Class Distribution -------------------- 100% | Mutant Dominant Class ---------------- Mutant | -10/Materials Mutant | -10/Subcaves Resources | -11 -10 -10 ----------- Run | Yrd Mat Sub Matter Collected 558 | 113 217 228 Remotely . | . . . Salvage Created 281 | . . 281 Parts 21 | . . 21 Haulers Intercepted . | . . . Recyclers Shooed . | . . . Parts Field Recycled . | . . . Retrieved Matter . | . . . Parts Self-Destructed 14 | . . 14 Prevented . | . . . Kills | -11 -10 -10 ------- Run | Yrd Mat Sub Combat Hostiles Destroyed 11 | . . 11 Guns 2 | . . 2 AOE 9 | . . 9 Classes Destroyed 2 | . . 2 Swarmer 3 | . . 3 Subdweller 8 | . . 8 Best Kill Streak 3 | . . 3 Combat Bots Only 3 | . . 3 Max Kills in Single Turn 2 | . . 2 Gunslinging . | . . . Exploded 2 | . . 2 Melee . | . . . Uniques/NPCs Destroyed . | . . . Combat | -11 -10 -10 -------- Run | Yrd Mat Sub Hostile Shots Fired 74 | . 4 70 Missed 21 | . 2 19 Damage Taken 1191 | . 27 1164 Core 251 | . . 251 Absorbed by Shields . | . . . Core Remaining (%) 100 | 100 . . Volleys Fired 62 | . 12 50 Largest 2 | . 1 2 Hottest 100 | . 100 100 Shots Fired 80 | . 12 68 Gun 34 | . . 34 Cannon . | . . . Launcher 22 | . . 22 Special 24 | . 12 12 Kinetic 40 | . . 40 Thermal 40 | . 12 28 Explosive . | . . . Electromagnetic . | . . . Robot Hit Streak 28 | . 2 28 Robot Miss Streak 2 | . 2 2 Penetration Max . | . . . Secondary Targets 1 | . . 1 Max Gunslinging Chain 1 | . . 1 Shots Hit Robots 47 | . 7 40 Core Hits 18 | . . 18 Critical Kills . | . . . Critical Parts Destroyed . | . . . Critical Strikes 1 | . . 1 Burn 1 | . . 1 Melee Attacks 5 | . 5 . Impact . | . . . Slashing . | . . . Piercing . | . . . Sneak Attacks . | . . . Combat Hostiles . | . . . Follow-up Attacks . | . . . Damage Inflicted 1412 | . 96 1316 Guns 136 | . . 136 Cannons . | . . . Explosions 1180 | . . 1180 Melee . | . . . Ramming . | . . . Kinetic 1228 | . . 1228 Thermal 184 | . 96 88 Explosive . | . . . Electromagnetic . | . . . Impact . | . . . Slashing . | . . . Piercing . | . . . Highest Corruption . | . . . Average Corruption . | . . . Corruption Purged . | . . . Corruption Blocked . | . . . Overload Shots . | . . . Overflow Damage 12 | . 12 . Projectiles 12 | . 12 . Explosions . | . . . Melee . | . . . Knockbacks . | . . . Impact . | . . . Kinetic . | . . . Secondary . | . . . Self-Inflicted Damage 218 | . . 218 Shots 6 | . . 6 Rammed . | . . . Targets Rammed . | . . . Kicked . | . . . Crushed . | . . . Highest Temperature 58 | . 58 3 Average Temperature 21 | . 23 2 Received Heat Transfer 156 | . . 156 Siege Activations . | . . . Robots Corrupted . | . . . Combat Hostiles . | . . . Parts Fried . | . . . Impact Corruptions . | . . . Robots Melted . | . . . Combat Hostiles . | . . . Parts Melted 3 | . . 3 Heat Transferred 533 | . 200 333 Parts Sabotaged . | . . . Parts Stolen . | . . . Parts Stripped . | . . . Power Chain Reactions . | . . . Alert | -11 -10 -10 ------- Run | Yrd Mat Sub Peak Influence 44 | . 44 . Initial . | . . . Average 7 | . 8 . Maximum Alert Level . | . . . Low Security (%) 100 | 100 100 . Level 1 . | . . . Level 2 . | . . . Level 3 . | . . . Level 4 . | . . . Level 5 . | . . . High Security . | . . . Max Security . | . . . Squads Dispatched . | . . . Investigation . | . . . Extermination . | . . . Reinforcement . | . . . Assault . | . . . Garrison . | . . . Intercept . | . . . Searches Triggered . | . . . Construction Impeded . | . . . Haulers Reinforced . | . . . Active Scanning Responses . | . . . Cargo Convoy Interrupts . | . . . Stealth | -11 -10 -10 --------- Run | Yrd Mat Sub Distress Signals 1 | . 1 . Communications Jammed . | . . . Distress Signals . | . . . Times Spotted 17 | . 5 12 Peak Tracking Total 6 | . 6 3 Tactical Retreats 1 | . 1 . Traps | -11 -10 -10 ------- Run | Yrd Mat Sub Traps Triggered . | . . . Indirectly . | . . . Trap Hack Attempts . | . . . Triggered . | . . . Disarmed . | . . . Reprogrammed . | . . . Reused . | . . . Traps Extracted . | . . . Installed . | . . . Triggered . | . . . Machines | -11 -10 -10 ---------- Run | Yrd Mat Sub Machines Disabled 1 | . 1 . Max in Single Turn 1 | . 1 . Machines Repaired . | . . . Machines Dismantled . | . . . Machines Sabotaged . | . . . Overloaded Fab Kills . | . . . Hacking | -11 -10 -10 --------- Run | Yrd Mat Sub Machines Accessed 5 | . 5 . Terminals 4 | . 4 . Fabricators . | . . . Repair Stations . | . . . Recycling Units 1 | . 1 . Scanalyzers . | . . . Garrison Access . | . . . Total Hacks 18 | . 18 . Successful 12 | . 12 . Failed 6 | . 6 . Catastrophic . | . . . Database Lockouts . | . . . Manual 4 | . 4 . Terminals 15 | . 15 . Fabricators . | . . . Repair Stations . | . . . Recycling Units 3 | . 3 . Scanalyzers . | . . . Garrison Access . | . . . Terminal Hacks 7 | . 7 . Prototype ID Bank 1 | . 1 . Emergency Access Points 1 | . 1 . Alert Level 2 | . 2 . Investigation Status 1 | . 1 . Recall Investigation 1 | . 1 . Hauler Manifests 1 | . 1 . Fabricator Hacks . | . . . Repair Station Hacks . | . . . Recycling Unit Hacks 1 | . 1 . Report Inventory 1 | . 1 . Scanalyzer . | . . . Garrison Access Hacks . | . . . Unauthorized Hacks 4 | . 4 . Terminals 3 | . 3 . Botnet 3 | . 3 . Fabricators . | . . . Repair Stations . | . . . Recycling Units 1 | . 1 . Reject 1 | . 1 . Scanalyzers . | . . . Garrison Access . | . . . Data Cores Recovered . | . . . Used . | . . . Hacking Detections 4 | . 4 . Full Trace Events 2 | . 2 . Feedback Events . | . . . Feedback Blocked . | . . . Robot Schematics Acquired . | . . . Robots Built . | . . . Authchips . | . . . Time . | . . . Total Robot Build Rating . | . . . Part Schematics Acquired . | . . . Parts Built . | . . . Authchips . | . . . Time . | . . . Total Part Build Rating . | . . . Parts Repaired . | . . . Time . | . . . Parts Recycled . | . . . Recycled Matter . | . . . Retrieved Matter . | . . . Retrieved Components . | . . . Parts Scanalyzed . | . . . Part Schematics Acquired . | . . . Parts Damaged . | . . . Bothacking | -11 -10 -10 ------------ Run | Yrd Mat Sub Used RIF Installer . | . . . Robots Hacked 1 | . 1 . Non-combat 1 | . 1 . Combat . | . . . Robot Hacks Applied 1 | . 1 . no_distress 1 | . 1 . Relay Couplers Released . | . . . Fabnet Peak Effective % . | . . . Robots Rewired . | . . . Allies Hacked . | . . . Hacks Repelled . | . . . Allies | -11 -10 -10 -------- Run | Yrd Mat Sub Total Allies . | . . . Largest Group . | . . . Highest-Rated Group . | . . . Highest-Rated Ally . | . . . Total Orders . | . . . Ally Attacks . | . . . Total Damage . | . . . Kills . | . . . Allies Corrupted . | . . . Allies Melted . | . . . Intel | -11 -10 -10 ------- Run | Yrd Mat Sub Robot Analysis Total . | . . . Derelict Logs Recovered 1 | . . 1 Drone Launches . | . . . Drone Recoveries . | . . . Exploration | -11 -10 -10 ------------- Run | Yrd Mat Sub Turns Passed 2149 | 75 852 1222 Spaces Moved 1085 | 59 467 559 Core 136 | 11 . 125 Treads 16 | 16 . . Legs . | . . . Wheels 150 | 32 118 . Hover 783 | . 349 434 Flight . | . . . Fastest Speed 50 | 50 56 56 Average Speed 129 | 101 64 186 Slowest Speed 300 | 160 90 300 Overloaded Moves . | . . . Propulsion Burnouts . | . . . Robots Hopped . | . . . Cave-ins Triggered . | . . . Exploration Rate (%) 36 | 5 68 36 Regions Visited 2 Branch Regions 1 Pre-discovered Areas . | . . . Known Exits Taken . | . . . Unknown Exits Taken 2 | 1 1 . Scrap Searched 4 | . . 4 Spaces Dug 1 | . 1 . Terrain Destroyed 216 | . 4 212 Melee . | . . . Projectile 4 | . 4 . AOE 212 | . . 212 Terrain Rammed . | . . . Walls Destroyed . | . . . Machines Disabled . | . . . Actions | -11 -10 -10 --------- Run | Yrd Mat Sub Total 1704 | 75 978 651 Wait 495 | . 478 17 Move 1083 | 58 466 559 Hop . | . . . Pick Up 23 | 8 8 7 Fast Attach . | . . . Attach 17 | 7 4 6 Detach . | . . . Swap 4 | . 2 2 Drop 10 | 2 3 5 Fire 62 | . 12 50 Melee 5 | . 5 . Ram . | . . . Kick . | . . . Crush . | . . . Escape Stasis . | . . . Rewire . | . . . Trap . | . . . Miscellaneous 5 | . . 5 Route ------- -11/Scrapyard -10/Materials (discovered 3 exits: [*Mat] / [*Min] / [*Sub]) -10/Subcaves History --------- Turn | Location | Event 45 | -11/Scrapyard | Discovered new exit (range 15) 76 | -11/Scrapyard | Entered Materials 314 | -10/Materials | Build established: Mutant 719 | -10/Materials | Discovered new exit (range 15) 861 | -10/Materials | Discovered new exit (range 15) 900 | -10/Materials | Derelicts attacked the area 901 | -10/Materials | Discovered new exit (range 8) 928 | -10/Materials | Entered Subcaves 930 | -10/Subcaves | Learned Materials trap positions 1065 | -10/Subcaves | Disturbed a concealed Subdweller 1117 | -10/Subcaves | Lost 3 parts (2n1w) 1191 | -10/Subcaves | Ambushed by Subdweller buried in earth 1209 | -10/Subcaves | Core integrity fell below 50% 1242 | -10/Subcaves | Lost 3 parts (1p1n1w) 1537 | -10/Subcaves | Shifting Twisted Machinery released Mak. Light Armor Plating 1990 | -10/Subcaves | Lost 3 parts (1p1n1u) 2145 | -10/Subcaves | A Subdweller sparked back to life 2145 | -10/Subcaves | A Subdweller sparked back to life 2147 | -10/Subcaves | Core integrity fell below 20% 2150 | -10/Subcaves | Destroyed by 3O-I04(R) with Subdweller Laser Last Messages --------------- Flight Unit fries itself beyond repair. Lgt. Assault Rifle fries itself beyond repair. Subatomizers dissect the Sub. Monowheel. Flight Unit fries itself beyond repair. Lgt. Ion Engine fries itself beyond repair. Subatomizers dissect the Sub. Monowheel. Acquired 37 matter. Acquired 7 matter. Subatomizers dissect the Sub. Monowheel. Acquired 4 matter. Acquired 11 matter. Scrap Shield destroyed. Imp. Hover Unit destroyed. Lgt. Ion Engine destroyed. 7F-7K3(R) destroyed. Acquired 22 matter. GQ-5Z6(R) destroyed. 53-BQD(R) creaks and sparks as it begins to move. 3O-I04(R) creaks and sparks as it begins to move. Sub. Shrapnel Launcher destroyed. Map ----- +----------------------------------------------------+ | ?????????????????????????????????????????????????? | | ?????????????????????????????????????????????????? | | ?????????????????????????????????????????????????? | | ????????????????????????????????#####????????????? | | ???????????????????????????????##"""#????????????? | | ????????????????????????######## "#####????????# | | ??????????????????????###"""# " " #????????# | | ????????????####???#### "" "# "#???##### | | ????????????# ##### "# ""???# | | ????????????# "#" ????# ### | | ?????????????# " """#?????# #"" | | ?????????????# #??????# #%" | | ???????????## # ##?????# #"] | | ??????##### ## ""#####?#"##" | | ?????# ## ##### #"""#?#""# | | ????## #??# " #?#" | | ???# #??## #?####" | | ? ???# ##???# " ####?# | | ??# #### ##???### #### ### | | ??# #????? #### ## """"# ## | | ??# #?????? ?# ##### | | ??# ##??????? #?## #??# | | ??# ##????????# #??# #?# #### | | ??### #???####### #??# #??# | | ????## #???#;; ; ##?# #??# | | ????## ##????# @ #?# #### ?# # # | | ????# ##??# ; R #?# ##??## ?## | | ????# ##### ; % ##?# ##????## ?# | | ????# # R! #??## ???????## # | | ????# #;;; ##??# ?????????# ## | | ????## ### ; ##?# ??????????### #? | | ?????## ### #???????????????#####? | | ??????# ## #????????????????????? | | ?????## ###??????????????????? | | ?????# ## #??????????????????? | | ????# ### ### ### #??????????????????? | | ????# #?# #?## ??## ##?????????????????? | | ????# #?# ##?###??## ####??????????????? | | ????## #?# ####??## #??????????????? | | ?????###### #### #??????????????? | | ?????????# ##??????????????? | | ?????????# ##???????????????? | | ????????## #### ###????????????????? | | ???###### #??# #??????????????????? | | ???# ## ## #??## ###??????????????????? | | ???# ## #####???###????????????????????? | | #?## #??????????????????????????????? | | ### #??????????????????????????????? | | ##?????????????????????????????? | | ### ##????????????????????????????? | +----------------------------------------------------+ Best States ------------- Heat Dissipation 25 Energy Generation 10 Energy Capacity 250 Matter Stores 300 Matter Capacity 300 Sight Range 16 Terrain Scan Density 10 ECM Strength 1 Armor Coverage 800 Evasion (%) 53 Recoil Reduction 2 Item Schematics ----------------- None Robot Schematics ------------------ None Fabricated ------------ Nothing Alien Tech Used ----------------- None Achievements -------------- None Challenges ------------ None Game ------ Seed AssembledTacticalMegatreads Manual? 0 Play Time 00:16:06 Cumulative 11.3 hours Start 2024.04.03 @ 16:24:57 End 2024.04.03 @ 16:40:17 Sessions 1 Manual Loads 0 Difficulty Rogue Special Mode None Game No. 14 Rogue 12 Adventurer 2 Explorer 0 Win Type - Total 0 Types 0/0/0/0/0/0/0/0/0 Lore% 9 Gallery% 19 Achievement% 21 Wizard Run 0 Options --------- Layout 0 ASCII 0 Keyboard 0 Movement Mouse Keybinds 0 Fullscreen 1 Font 18/SmallcapsGlow Map View 38x25 Zoom Use 96% Tactical HUD 0 Map Filters NONE Filters NONE Steam 1 RUN: f38e74ea-9a88-4d24-8abd-d6dd3c88d600